fUST/lending_fUST_20240324
["ID","MTS","AMOUNT","RATE_DAILY","PERIOD"]
[320224114,1711215040947,-26.54261147,0.00024925,2]
[320224117,1711215040957,-638.45738853,0.00024925,2]
[320224632,1711215043774,-440.03261147,0.00024925,2]
[320224634,1711215043784,-899.83,0.00024925,2]
[320224636,1711215043794,-2679.17,0.00024925,2]
[320224638,1711215043803,-609.8,0.00024925,2]
[320224640,1711215043812,-396.29521165,0.00024925,2]
[320224642,1711215043823,-103.70478835,0.00024925,2]
[320224644,1711215043833,-871.09,0.00024925,2]
[320224646,1711215043843,-915.69,0.00024925,2]
[320224648,1711215043853,-6274.5152056,0.00024925,2]
[320224650,1711215043867,-6606.0647944,0.00024925,2]
[320224652,1711215043877,-2191.61,0.00024925,2]
[320224654,1711215043890,-501.02368276,0.00024925,2]
[320224657,1711215043899,-943.82,0.00024925,2]
[320224660,1711215043909,-500.0,0.00024925,2]
[320224663,1711215043919,-500.0,0.00024925,2]
[320224666,1711215043928,-2139.24,0.00024925,2]
[320224669,1711215043939,-500.0,0.00024926,2]
[320224672,1711215043948,-500.0,0.00024926,2]
[320224675,1711215043958,-500.0,0.00024926,2]
[320224677,1711215043968,-1377.39,0.00024926,2]
[320224679,1711215043977,-482.12225099,0.00024926,2]
[320224681,1711215043986,-500.0,0.00024926,2]
[320224684,1711215043994,-500.0,0.00024926,2]
[320224687,1711215044004,-500.0,0.00024926,2]
[320224689,1711215044013,-500.0,0.00024926,2]
[320224692,1711215044022,-925.68,0.00024926,2]
[320224695,1711215044031,-765.39,0.00024926,2]
[320224698,1711215044040,-614.88212596,0.00024926,2]
[320224701,1711215044049,-500.0,0.00024926,2]
[320224704,1711215044058,-500.0,0.00024926,2]
[320224707,1711215044067,-1138.02009173,0.00024926,2]
[320224711,1711215044079,-282.0,0.00024926,2]
[320227623,1711215357798,-170.49852087,0.00022587,2]
[320227624,1711215357821,-877.08592788,0.00022588,2]
[320227625,1711215357843,-155.0,0.00022588,2]
[320227626,1711215357865,-296.41555125,0.00022589,2]
[320227628,1711215963420,468.51942639,0.00020489,2]
[320227640,1711216049713,500.0,0.00020489,2]
[320227641,1711216065693,500.0,0.00020489,2]
[320227642,1711216118489,539.02985952,0.00020489,2]
[320227754,1711216232318,-597.0,0.00021237,2]
[320227756,1711216232328,-24900.0,0.00021238,2]
[320227758,1711216232337,-863.98813889,0.00021335,2]
[320227760,1711216232347,-741.72972405,0.00021336,2]
[320227761,1711216232356,-204.73048716,0.00021337,2]
[320227763,1711216232365,-1036.564476,0.00021685,2]
[320227765,1711216232374,-300.0,0.00022101,2]
[320227767,1711216232382,-4503.0243529,0.00023062,2]
[320227769,1711216232393,-1721.66047521,0.0002336,2]
[320227771,1711216232402,-170.32523021,0.0002336,2]
[320227773,1711216232411,-876.26225762,0.0002336,2]
[320227775,1711216232421,-289.1122831,0.00023652,2]
[320227777,1711216232430,-156.915524,0.00023844,2]
[320227778,1711216232439,-174.863561,0.00023844,2]
[320227780,1711216232449,-6000.0,0.00024,2]
[320227782,1711216232458,-300.0,0.00024311,2]
[320227784,1711216232467,-306.4182217,0.00024411,2]
[320227786,1711216232477,-166.666666,0.00024658,2]
[320227788,1711216232485,-455.21785889,0.000248,2]
[320227790,1711216232495,-223.50187917,0.00024823,2]
[320227791,1711216232504,-7755.00362505,0.00024898,2]
[320227793,1711216232513,-5000.0,0.000249,2]
[320227795,1711216232522,-930.89185044,0.00024923,2]
[320227797,1711216232531,-3087.2728321,0.00024923,2]
[320227799,1711216232540,-1955.99190053,0.00024923,2]
[320227801,1711216232549,-594.16542344,0.00024923,2]
[320227803,1711216232558,-155.25832095,0.00024923,2]
[320227805,1711216232567,-271.78886118,0.00024923,2]
[320227806,1711216232575,-861.20297863,0.00024923,2]
[320227808,1711216232585,-164.53920778,0.00024923,2]
[320227810,1711216232594,-1985.34,0.00024923,2]
[320227812,1711216232603,-257.37308517,0.00024923,2]
[320228566,1711216243015,-590.99691483,0.00024923,2]
[320228568,1711216243026,-500.0,0.00024923,2]
[320228569,1711216243039,-1546.31,0.00024923,2]
[320228570,1711216243050,-6026.72086241,0.00024923,2]
[320228692,1711216246194,-223.50187916,0.00024824,2]
[320228695,1711216246205,-494.4864827,0.00024922,2]
[320228697,1711216246216,-3945.72913759,0.00024923,2]
[320228699,1711216246226,-1174.16,0.00024923,2]
[320228701,1711216246236,-500.0,0.00024923,2]
[320228703,1711216246247,-502.19195385,0.00024923,2]
[320228705,1711216246258,-500.0,0.00024923,2]
[320228708,1711216246268,-645.03959881,0.00024923,2]
[320228710,1711216246279,-500.0,0.00024923,2]
[320228712,1711216246290,-862.34,0.00024923,2]
[320228714,1711216246301,-575.98,0.00024923,2]
[320228716,1711216246312,-2966.22,0.00024923,2]
[320228718,1711216246322,-947.49,0.00024923,2]
[320228720,1711216246332,-12929.87,0.00024923,2]
[320228723,1711216246342,-4637.28,0.00024923,2]
[320228725,1711216246352,-834.79,0.00024923,2]
[320228727,1711216246363,-375.16780423,0.00024923,2]
[320228729,1711216246374,-173.63504149,0.00024924,2]
[320228731,1711216246384,-309.86056352,0.00024924,2]
[320228733,1711216246395,-487.92325292,0.00024924,2]
[320228736,1711216246405,-3794.23584445,0.00024924,2]
[320228738,1711216246415,-500.0,0.00024924,2]
[320228740,1711216246424,-500.0,0.00024924,2]
[320228741,1711216246433,-500.0,0.00024924,2]
[320228744,1711216246443,-500.0,0.00024924,2]
[320228746,1711216246452,-162.01,0.00024924,2]
[320228748,1711216246463,-500.0,0.00024924,2]
[320228750,1711216246473,-648.3,0.00024924,2]
[320228769,1711216246641,-500.0,0.00024924,2]
[320228772,1711216246656,-500.0,0.00024924,2]
[320228774,1711216246666,-851.18,0.00024924,2]
[320228776,1711216246675,-198.579749,0.00024924,2]
[320228778,1711216246684,-500.0,0.00024924,2]
[320228780,1711216246693,-500.0,0.00024924,2]
[320228782,1711216246701,-500.0,0.00024924,2]
[320228784,1711216246711,-500.0,0.00024924,2]
[320228786,1711216246720,-511.83372254,0.00024924,2]
[320228788,1711216246729,-1390.38,0.00024924,2]
[320228789,1711216246739,-500.0,0.00024924,2]
[320228791,1711216246748,-500.0,0.00024924,2]
[320228793,1711216246757,-500.0,0.00024924,2]
[320228796,1711216246766,-500.0,0.00024924,2]
[320228797,1711216246775,-500.0,0.00024924,2]
[320228800,1711216246784,-500.0,0.00024924,2]
[320228802,1711216246793,-501.34168978,0.00024924,2]
[320228804,1711216246802,-500.0,0.00024924,2]
[320228806,1711216246811,-500.0,0.00024924,2]
[320228807,1711216246820,-500.0,0.00024924,2]
[320228809,1711216246830,-1074.23,0.00024924,2]
[320228811,1711216246838,-500.0,0.00024924,2]
[320228814,1711216246848,-500.0,0.00024924,2]
[320228816,1711216246857,-1306.09,0.00024924,2]
[320228818,1711216246866,-500.8127276,0.00024924,2]
[320228820,1711216246875,-500.0,0.00024924,2]
[320228822,1711216246884,-1344.9,0.00024924,2]
[320228824,1711216246893,-500.0,0.00024924,2]
[320228826,1711216246902,-500.0,0.00024924,2]
[320228828,1711216246911,-500.0,0.00024924,2]
[320228829,1711216246920,-500.0,0.00024924,2]
[320228832,1711216246930,-500.0,0.00024924,2]
[320228834,1711216246939,-500.91580087,0.00024924,2]
[320228836,1711216246948,-500.0,0.00024924,2]
[320228838,1711216246956,-613.0,0.00024924,2]
[320228839,1711216246965,-500.0,0.00024924,2]
[320228841,1711216246974,-12080.78,0.00024924,2]
[320228844,1711216246984,-500.45782844,0.00024924,2]
[320228845,1711216246993,-506.85878129,0.00024924,2]
[320228848,1711216247003,-548.65,0.00024924,2]
[320228850,1711216247011,-502.47930844,0.00024924,2]
[320228852,1711216247021,-500.44386412,0.00024924,2]
[320228854,1711216247030,-500.0,0.00024924,2]
[320228856,1711216247038,-13368.96,0.00024924,2]
[320228858,1711216247047,-877.53,0.00024924,2]
[320228859,1711216247058,-500.0,0.00024924,2]
[320228861,1711216247071,-2866.78,0.00024924,2]
[320228863,1711216247081,-500.0,0.00024924,2]
[320228865,1711216247090,-500.0,0.00024924,2]
[320228867,1711216247099,-500.0,0.00024924,2]
[320228870,1711216247109,-500.0,0.00024924,2]
[320228872,1711216247118,-500.8921511,0.00024924,2]
[320228874,1711216247127,-2460.18,0.00024924,2]
[320228876,1711216247137,-500.0,0.00024924,2]
[320228877,1711216247146,-1385.33,0.00024924,2]
[320228880,1711216247156,-500.0,0.00024924,2]
[320228881,1711216247165,-500.0,0.00024924,2]
[320228883,1711216247174,-18795.6521451,0.00024925,3]
[320228885,1711216247183,-815.66428976,0.00024925,2]
[320228886,1711216247193,-482.42563015,0.00024925,2]
[320228887,1711216247202,-500.0,0.00024925,2]
[320228889,1711216247211,-500.0,0.00024925,2]
[320228891,1711216247221,-236.95967562,0.00024925,2]
[320228892,1711216247230,-500.0,0.00024925,2]
[320228893,1711216247239,-501.97819687,0.00024925,2]
[320228894,1711216247248,-500.51551755,0.00024925,2]
[320228895,1711216247257,-151.0,0.00024925,2]
[320228896,1711216247266,-500.0,0.00024925,2]
[320228897,1711216247275,-396.00705078,0.00024925,2]
[320228898,1711216247283,-170.79039472,0.00024925,2]
[320228899,1711216247292,-500.0,0.00024925,2]
[320228900,1711216247301,-500.87618256,0.00024925,2]
[320228901,1711216247310,-500.86420889,0.00024925,2]
[320228902,1711216247319,-512.04525467,0.00024925,2]
[320228903,1711216247328,-500.0,0.00024925,2]
[320228904,1711216247337,-502.21734091,0.00024925,2]
[320228905,1711216247346,-190.5875745,0.00024925,2]
[320228906,1711216247355,-500.0,0.00024925,2]
[320228907,1711216247365,-500.0,0.00024925,2]
[320228908,1711216247374,-342.32685626,0.00024925,2]
[320228909,1711216247383,-500.0,0.00024925,2]
[320228910,1711216247392,-500.0,0.00024925,2]
[320228911,1711216247402,-500.0,0.00024925,2]
[320228912,1711216247411,-500.0,0.00024925,2]
[320228913,1711216247420,-500.0,0.00024925,2]
[320228914,1711216247430,-500.0,0.00024925,2]
[320228915,1711216247441,-451.63645465,0.00024925,2]
[320228916,1711216247450,-154.86062544,0.00024925,2]
[320228917,1711216247461,-500.0,0.00024925,2]
[320228918,1711216247470,-500.0,0.00024925,2]
[320228919,1711216247479,-500.0,0.00024925,2]
[320228920,1711216247489,-501.69758102,0.00024925,2]
[320228921,1711216247498,-613.62,0.00024925,2]
[320228922,1711216247507,-500.0,0.00024925,2]
[320228923,1711216247516,-502.17343412,0.00024925,2]
[320228924,1711216247526,-500.0,0.00024925,2]
[320228925,1711216247536,-500.0,0.00024925,2]
[320228926,1711216247545,-500.0,0.00024925,2]
[320228927,1711216247554,-501.45566893,0.00024925,2]
[320228928,1711216247563,-971.7,0.00024925,2]
[320228929,1711216247572,-500.0,0.00024925,2]
[320228930,1711216247581,-500.0,0.00024925,2]
[320228931,1711216247591,-906.52,0.00024925,2]
[320228932,1711216247600,-773.54,0.00024925,2]
[320228933,1711216247609,-500.0,0.00024925,2]
[320228934,1711216247618,-252.82124568,0.00024925,2]
[320228935,1711216247627,-532.01448048,0.00024925,2]
[320228936,1711216247637,-500.0,0.00024925,2]
[320228937,1711216247646,-483.96509864,0.00024925,2]
[320228938,1711216247655,-571.83394865,0.00024925,2]
[320228939,1711216247664,-500.0,0.00024925,2]
[320228940,1711216247673,-500.0,0.00024925,2]
[320228941,1711216247682,-500.0,0.00024925,2]
[320228942,1711216247691,-500.0,0.00024925,2]
[320228944,1711216247700,-151.0,0.00024925,2]
[320228945,1711216247710,-500.0,0.00024925,2]
[320228946,1711216247718,-500.0,0.00024925,2]
[320228947,1711216247727,-557.14192136,0.00024925,2]
[320228948,1711216247737,-500.0,0.00024925,2]
[320228949,1711216247746,-500.0,0.00024925,2]
[320228950,1711216247755,-500.0,0.00024925,2]
[320228951,1711216247764,-500.0,0.00024925,2]
[320228952,1711216247773,-151.0,0.00024925,2]
[320228954,1711216247781,-222.693953,0.00024925,2]
[320228956,1711216247790,-151.0,0.00024925,2]
[320228958,1711216247800,-151.0,0.00024925,2]
[320228960,1711216247809,-151.0,0.00024925,2]
[320228962,1711216247818,-500.0,0.00024925,2]
[320228964,1711216247827,-500.0,0.00024925,2]
[320228966,1711216247836,-500.0,0.00024925,2]
[320228968,1711216247845,-500.0,0.00024925,2]
[320228969,1711216247855,-221.765564,0.00024925,2]
[320228970,1711216247864,-500.0,0.00024925,2]
[320228971,1711216247873,-500.0,0.00024925,2]
[320228972,1711216247882,-500.0,0.00024925,2]
[320228973,1711216247891,-521.62,0.00024925,2]
[320228974,1711216247900,-962.86,0.00024925,2]
[320228975,1711216247909,-503.47,0.00024925,2]
[320228976,1711216247918,-500.0,0.00024925,2]
[320228977,1711216247927,-284.96469214,0.00024925,2]
[320228978,1711216247937,-383.64640425,0.00024925,2]
[320228979,1711216247952,-116.35359575,0.00024925,2]
[320228980,1711216247961,-500.0,0.00024925,2]
[320228981,1711216247970,-2377.81182769,0.00024925,2]
[320229154,1711217445854,-277.30566118,0.00022723,2]
[320229160,1711217446307,-134.76640773,0.00022723,2]
[320229162,1711217446317,-303.42002237,0.00022724,2]
[320229163,1711217446326,-312.34628426,0.00022825,2]
[320229164,1711217446335,-3958.0908043,0.00023858,2]
[320229165,1711217446344,-166.666666,0.00024658,2]
[320229166,1711217446353,-1150.2874482,0.00024822,2]
[320229168,1711217446362,-153.75281652,0.00024823,2]
[320229169,1711217446371,-153.75281652,0.00024824,2]
[320229171,1711217446380,-153.75281652,0.00024825,2]
[320229172,1711217446389,-153.75281652,0.00024826,2]
[320229173,1711217446399,-151.0,0.000249,2]
[320229174,1711217446410,-358.71,0.000249,4]
[320229175,1711217446424,-400.0,0.000249,2]
[320229176,1711217446435,-866.89558604,0.00024921,2]
[320229177,1711217446445,-567.15703142,0.00024922,2]
[320229178,1711217446456,-500.0,0.00024922,2]
[320229179,1711217446465,-500.0,0.00024922,2]
[320229180,1711217446474,-500.0,0.00024922,2]
[320229181,1711217446484,-219.79379863,0.00024922,2]
[320229182,1711217446495,-500.0,0.00024922,2]
[320229183,1711217446504,-500.0,0.00024922,2]
[320229184,1711217446513,-500.0,0.00024922,2]
[320229185,1711217446522,-500.0,0.00024922,2]
[320229186,1711217446532,-269.1859236,0.00024922,2]
[320229187,1711217446540,-500.0,0.00024922,2]
[320229188,1711217446551,-500.0,0.00024922,2]
[320229189,1711217446560,-500.0,0.00024922,2]
[320229190,1711217446569,-500.0,0.00024922,2]
[320229191,1711217446578,-500.0,0.00024922,2]
[320229192,1711217446588,-500.0,0.00024922,2]
[320229193,1711217446598,-10755.55,0.00024922,2]
[320229194,1711217446607,-2.35012861,0.00024922,2]
[320229344,1711218638792,-214.6895479,0.00022202,2]
[320229345,1711218638801,-155.0,0.00022203,2]
[320229346,1711218638811,-213.71512098,0.000227,2]
[320229347,1711218638822,-258.23085617,0.00022822,2]
[320229348,1711218638831,-55.66948668,0.00023678,2]
[320229349,1711218638843,-17904.04872602,0.00023678,2]
[320229350,1711218638852,-213.71512098,0.00024558,2]
[320229351,1711218638861,-166.666666,0.00024658,2]
[320229352,1711218638870,-1724.01736232,0.00024896,2]
[320229360,1711218640461,-3415.40024648,0.00024896,2]
[320229361,1711218640470,-400.0,0.000249,2]
[320229363,1711218640479,-897.30501273,0.00024919,2]
[320229364,1711218640488,-501.60077712,0.0002492,2]
[320229366,1711218640497,-500.0,0.0002492,2]
[320229367,1711218640506,-1000.78,0.0002492,2]
[320229369,1711218640515,-500.0,0.0002492,2]
[320229371,1711218640525,-501.88000513,0.00024921,2]
[320229373,1711218640533,-500.0,0.00024921,2]
[320229374,1711218640543,-348.80999728,0.00024921,2]
[320229375,1711218640552,-500.0,0.00024921,2]
[320229376,1711218640561,-500.0,0.00024921,2]
[320229377,1711218640570,-308.07213112,0.00024921,2]
[320229449,1711218705372,-500.0,0.00024922,30]
[320229528,1711219832501,-214.6895479,0.00022818,2]
[320229530,1711219832510,-123.92789611,0.00022819,2]
[320229532,1711219832521,-1796.93291754,0.00022819,2]
[320229534,1711219832531,-172.15390411,0.00022822,2]
[320229536,1711219832540,-183.06668869,0.00023671,2]
[320229538,1711219832549,-166.666666,0.00024658,2]
[320229540,1711219832558,-400.0,0.000249,2]
[320229543,1711219832567,-500.0,0.00024918,2]
[320229546,1711219832576,-959.09,0.00024918,2]
[320229549,1711219832586,-39456.2693835,0.00024919,2]
[320229552,1711219832595,-500.0,0.00024919,2]
[320229555,1711219832603,-500.0,0.00024919,2]
[320229557,1711219832612,-500.0,0.00024919,2]
[320229560,1711219832622,-500.0,0.00024919,2]
[320229564,1711219832631,-500.0,0.00024919,2]
[320229566,1711219832645,-500.0,0.00024919,2]
[320229568,1711219832654,-500.0,0.00024919,2]
[320229570,1711219832663,-502.56757089,0.00024919,2]
[320229572,1711219832673,-500.0,0.00024919,2]
[320229574,1711219832682,-503.20873342,0.00024919,2]
[320229576,1711219832691,-500.0,0.00024919,2]
[320229578,1711219832700,-500.0,0.00024919,2]
[320229580,1711219832710,-500.0,0.00024919,2]
[320229583,1711219832720,-159.31470121,0.00024919,2]
[320229586,1711219832729,-353.49180429,0.00024919,2]
[320229589,1711219832738,-23.18173279,0.00024919,2]
[320229592,1711219832750,-476.81826721,0.00024919,2]
[320229595,1711219832759,-5298.08,0.00024919,2]
[320229598,1711219832769,-151.0,0.00024919,2]
[320229601,1711219832778,-151.0,0.00024919,2]
[320229604,1711219832787,-151.0,0.00024919,2]
[320229607,1711219832796,-151.0,0.00024919,2]
[320229610,1711219832805,-500.0,0.00024919,2]
[320229613,1711219832814,-359.88431712,0.00024919,2]
[320229718,1711219838439,-140.11568288,0.00024919,2]
[320229720,1711219838448,-500.0,0.00024919,2]
[320229722,1711219838458,-2254.43,0.00024919,2]
[320229724,1711219838467,-500.0,0.00024919,2]
[320229726,1711219838476,-1455.31,0.00024919,2]
[320229728,1711219838485,-500.0,0.00024919,2]
[320229730,1711219838494,-1180.44,0.00024919,2]
[320229732,1711219838503,-500.0,0.00024919,2]
[320229734,1711219838511,-4791.68024362,0.00024919,2]
[320229763,1711219840505,-425.17114921,0.00024919,2]
[320229782,1711219840677,-3074.69190042,0.00024919,2]
[320229784,1711219840689,-2360.03670675,0.00024919,2]
[320229786,1711219840698,-500.0,0.00024919,2]
[320229788,1711219840707,-500.0,0.00024919,2]
[320229790,1711219840716,-501.60821738,0.00024919,2]
[320229791,1711219840725,-1031.98,0.00024919,2]
[320229793,1711219840734,-406.03910518,0.00024919,2]
[320229796,1711219840746,-93.96089482,0.00024919,2]
[320229798,1711219840754,-822.88570526,0.00024919,2]
[320229807,1711219840834,-123.94429474,0.00024919,2]
[320229809,1711219840843,-500.0,0.00024919,2]
[320229811,1711219840853,-404.05981163,0.00024919,2]
[320229812,1711219840863,-3104.19,0.00024919,2]
[320229813,1711219840871,-236.48932986,0.00024919,2]
[320229814,1711219840881,-1376.83,0.00024919,2]
[320229815,1711219840890,-500.0,0.00024919,2]
[320229816,1711219840900,-1269.43,0.00024919,2]
[320229817,1711219840910,-256.43021072,0.00024919,2]
[320229818,1711219840919,-500.0,0.00024919,2]
[320229819,1711219840928,-346.71216608,0.00024919,2]
[320229820,1711219840937,-528.42,0.00024919,2]
[320229821,1711219840947,-500.0,0.00024919,2]
[320229822,1711219840956,-14910.8,0.00024919,2]
[320229823,1711219840966,-618.97,0.00024919,2]
[320229824,1711219840975,-3031.167398,0.00024919,2]
[320229825,1711219840985,-3031.167398,0.00024919,2]
[320229826,1711219840994,-506.07471688,0.00024919,2]
[320229827,1711219841003,-3201.53,0.00024919,2]
[320229828,1711219841012,-500.0,0.00024919,2]
[320229829,1711219841021,-969.3,0.00024919,2]
[320229830,1711219841031,-3043.62,0.00024919,2]
[320229831,1711219841042,-500.0,0.00024919,2]
[320229832,1711219841055,-500.0,0.00024919,2]
[320229833,1711219841065,-500.0,0.00024919,2]
[320229834,1711219841075,-500.0,0.00024919,2]
[320229835,1711219841213,-1378.67,0.00024919,2]
[320229836,1711219841223,-500.0,0.00024919,2]
[320229837,1711219841233,-500.0,0.00024919,2]
[320229838,1711219841242,-296.954295,0.00024919,2]
[320229839,1711219841251,-296.954295,0.00024919,2]
[320229840,1711219841261,-296.954295,0.00024919,2]
[320229841,1711219841271,-296.954295,0.00024919,2]
[320229842,1711219841280,-500.0,0.00024919,2]
[320229843,1711219841289,-3387.387296,0.00024919,2]
[320229844,1711219841299,-3387.387296,0.00024919,2]
[320229845,1711219841308,-1052.39406032,0.00024919,2]
[320229898,1711219843702,-491.6756624,0.00024918,2]
[320230184,1711219846625,-8.3243376,0.00024918,2]
[320230186,1711219846634,-7755.00362505,0.00024918,2]
[320230187,1711219846643,-2334.99323568,0.00024919,2]
[320230189,1711219846654,-3387.387296,0.00024919,2]
[320230191,1711219846663,-500.0,0.00024919,2]
[320230192,1711219846672,-500.0,0.00024919,2]
[320230194,1711219846681,-500.0,0.00024919,2]
[320230196,1711219846690,-2548.13,0.00024919,2]
[320230197,1711219846699,-614.53,0.00024919,2]
[320230199,1711219846708,-500.0,0.00024919,2]
[320230201,1711219846717,-868.8,0.00024919,2]
[320230202,1711219846725,-536.46862524,0.00024919,2]
[320230203,1711219846734,-500.0,0.00024919,2]
[320230204,1711219846742,-13347.92,0.00024919,2]
[320230205,1711219846751,-298.331029,0.00024919,2]
[320230207,1711219846760,-298.331029,0.00024919,2]
[320230208,1711219846769,-1019.48,0.00024919,2]
[320230210,1711219846778,-500.0,0.00024919,2]
[320230212,1711219846786,-298.331029,0.00024919,2]
[320230213,1711219846795,-298.331029,0.00024919,2]
[320230215,1711219846804,-500.0,0.00024919,2]
[320230217,1711219846812,-4960.89913644,0.00024919,2]
[320230218,1711219846824,-507.35086356,0.00024919,2]
[320230220,1711219846833,-23219.27513172,0.0002492,3]
[320230431,1711220031789,1161.60266686,0.0002,2]
[320230432,1711220076643,1683.47560999,0.00024914,30]
[320230454,1711220349672,-559.74068277,0.00022205,2]
[320230455,1711220349693,-214.6895479,0.00022206,2]
[320230456,1711220349712,-535.03325412,0.00022206,2]
[320230457,1711220349732,-291.20427432,0.00022207,2]
[320230458,1711220349751,-435.27402694,0.00022207,2]
[320230459,1711220349771,-300.0,0.00022221,2]
[320230460,1711220349791,-14041.79288321,0.00022222,2]
[320230461,1711220349813,-115.26533074,0.00022233,2]
[320230488,1711220786695,207.63308301,0.00020122,2]
[320230521,1711221032697,-214.6895479,0.00022233,2]
[320230522,1711221032706,-97.47759126,0.00022233,2]
[320230523,1711221032715,-5541.00282732,0.0002281,2]
[320230524,1711221032725,-3152.28655529,0.00022811,2]
[320230525,1711221032734,-328.67,0.00023672,2]
[320230526,1711221032743,-630.5444698,0.00023865,2]
[320230527,1711221032751,-2500.99446521,0.00024,2]
[320230528,1711221032763,-166.666666,0.00024658,2]
[320230529,1711221032772,-153.0,0.000247,2]
[320230530,1711221032781,-929.83704585,0.00024719,2]
[320230531,1711221032790,-929.83704583,0.00024719,2]
[320230532,1711221032799,-929.83704583,0.0002472,2]
[320230533,1711221032808,-929.83704583,0.0002472,2]
[320230534,1711221032817,-929.83704583,0.0002472,2]
[320230535,1711221032826,-153.0,0.000248,2]
[320230536,1711221032835,-153.0,0.000248,2]
[320230537,1711221032843,-153.0,0.000248,2]
[320230538,1711221032852,-861.20297863,0.00024816,2]
[320230539,1711221032861,-1955.99190053,0.00024817,2]
[320230540,1711221032870,-594.16542344,0.00024817,2]
[320230541,1711221032879,-155.25832095,0.00024817,2]
[320230542,1711221032887,-271.78886118,0.00024817,2]
[320230543,1711221032896,-480.35677153,0.00024818,2]
[320230544,1711221032905,-673.84376581,0.00024818,2]
[320230545,1711221032914,-546.44194803,0.00024818,2]
[320230546,1711221032923,-930.89185044,0.00024818,2]
[320230547,1711221032932,-155.51886579,0.00024818,2]
[320230548,1711221032940,-3087.2728321,0.00024818,2]
[320230549,1711221032949,-500.0,0.00024818,2]
[320230550,1711221032958,-3183.09447023,0.00024818,2]
[320230551,1711221032970,-7691.14552977,0.00024818,2]
[320230552,1711221032979,-500.0,0.00024818,2]
[320230553,1711221032988,-690.37,0.00024818,2]
[320230554,1711221032997,-656.75,0.00024818,2]
[320230555,1711221033008,-3639.26,0.00024818,2]
[320230556,1711221033017,-919.12,0.00024818,2]
[320230557,1711221033026,-500.0,0.00024818,2]
[320230558,1711221033035,-500.35459152,0.00024819,2]
[320230559,1711221033044,-500.0,0.00024819,2]
[320230560,1711221033052,-500.0,0.00024819,2]
[320230561,1711221033062,-242.31473319,0.00024819,2]
[320230562,1711221033071,-500.39873152,0.00024819,2]
[320230563,1711221033081,-500.0,0.00024819,2]
[320230564,1711221033090,-500.0,0.00024819,2]
[320230565,1711221033099,-500.0,0.00024819,2]
[320230566,1711221033108,-500.0,0.00024819,2]
[320230567,1711221033118,-500.0,0.00024819,2]
[320230568,1711221033127,-602.8470406,0.00024819,2]
[320230569,1711221033137,-500.0,0.00024819,2]
[320230570,1711221033146,-500.0,0.00024819,2]
[320230571,1711221033156,-500.0,0.00024819,2]
[320230572,1711221033166,-502.5342667,0.00024819,2]
[320230573,1711221033175,-500.0,0.00024819,2]
[320230574,1711221033185,-500.0,0.00024819,2]
[320230575,1711221033194,-500.0,0.00024819,2]
[320230576,1711221033204,-500.0,0.00024819,2]
[320230577,1711221033213,-500.0,0.00024819,2]
[320230578,1711221033223,-500.0,0.00024819,2]
[320230579,1711221033232,-500.55411276,0.00024819,2]
[320230580,1711221033241,-500.0,0.00024819,2]
[320230582,1711221033250,-151.0,0.00024819,2]
[320230584,1711221033260,-151.0,0.00024819,2]
[320230586,1711221033269,-500.0,0.00024819,2]
[320230587,1711221033278,-501.84726895,0.00024819,2]
[320230588,1711221033287,-500.0,0.00024819,2]
[320230590,1711221033296,-500.0,0.00024819,2]
[320230591,1711221033306,-500.0,0.00024819,2]
[320230593,1711221033315,-314.82549206,0.00024819,2]